bitfinex-derivatives/quotes_SOLF0:USTF0_20250808
["timestamp","ask_amount","ask_price","bid_price","bid_amount"]
[1754616318892,0.0408475,174.14,174.12,4.83331136]
[1754616319092,3.3008475,174.14,174.12,10.57421136]
[1754616319388,0.0408475,174.14,174.12,8.16331136]
[1754616319695,0.0408475,174.14,174.13,9.0707]
[1754616320690,0.0408475,174.14,174.13,3.33]
[1754616320889,0.0408475,174.14,174.12,13.90421136]
[1754616321492,0.0408475,174.14,174.12,4.83331136]
[1754616321795,3.26,174.13,174.11,5.7413]
[1754616321998,3.26,174.13,174.09,4.83331136]
[1754616322194,3.26,174.13,174.11,9.0712]
[1754616322588,0.0408475,174.14,174.13,3.33]
[1754616322788,0.0408475,174.14,174.13,8.16331136]
[1754616323091,0.0408475,174.14,174.09,8.16331136]
[1754616323393,0.0408475,174.14,174.09,4.83331136]
[1754616323394,3.26,174.1,174.09,4.83331136]
[1754616323594,5.7401,174.15,174.1,3.33]
[1754616323791,3.26,174.14,174.11,3.33]
[1754616324196,3.29879798,174.14,174.11,3.33]
[1754616324392,3.26,174.13,174.09,4.83331136]
[1754616324597,3.26,174.13,174.08,115.18]
[1754616325291,5.7408,174.13,174.08,120.9221]
[1754616325496,0.03879798,174.14,174.09,8.16331136]
[1754616325691,3.29879798,174.14,174.1,3.33]
[1754616325898,3.26,174.13,174.1,3.33]
[1754616326196,3.26,174.13,174.1,9.0715]
[1754616326496,3.26,174.13,174.1,3.33]
[1754616326696,0.03879798,174.14,174.11,4.83331136]
[1754616326997,0.03879798,174.14,174.13,8.16331136]
[1754616327185,0.03879798,174.14,174.13,13.90401136]
[1754616327992,0.03879798,174.14,174.13,4.83331136]
[1754616328396,0.03879798,174.14,174.13,8.16331136]
[1754616328596,3.26,174.25,174.14,3.33]
[1754616328789,3.26,174.25,174.18,4.83331136]
[1754616328991,3.26,174.28,174.2,4.83331136]
[1754616329497,3.26,174.25,174.22,4.83331136]
[1754616329799,3.26,174.25,174.23,5.7374]
[1754616329999,3.26,174.24,174.22,4.87334548]
[1754616330190,3.26,174.23,174.22,4.87334548]
[1754616330593,3.26,174.23,174.22,0.04003412]
[1754616331802,8.9974,174.23,174.22,0.04003412]
[1754616332001,3.26,174.23,174.22,0.04003412]
[1754616332902,8.9974,174.23,174.22,0.04003412]
[1754616333207,0.03938868,174.24,174.16,119.89331136]
[1754616333410,8.9778,174.22,174.17,5.7392]
[1754616333706,3.24,174.23,174.16,4.83331136]
[1754616333900,3.24,174.23,174.14,4.83331136]
[1754616334100,4.83331136,174.22,174.12,7.98331136]
[1754616334302,4.83331136,174.2,174.1,119.85331136]
[1754616334607,3.24,174.13,174.1,123.00331136]
[1754616334800,3.24,174.12,174.1,115.02]
[1754616335396,3.27816419,174.13,174.1,118.17]
[1754616335906,3.27816419,174.13,174.1,123.9115]
[1754616336406,0.03816419,174.13,174.1,115.02]
[1754616336597,3.24,174.11,174.1,115.02]
[1754616337006,8.9814,174.11,174.1,115.02]
[1754616337210,3.24,174.11,174.04,114.98]
[1754616337402,0.03816419,174.13,174.04,114.98]
[1754616337611,3.24,174.12,174.04,114.98]
[1754616337907,5.7423,174.09,174.04,120.7236]
[1754616338107,3.24,174.08,174.04,123.8736]
[1754616338302,3.24,174.07,174.04,123.8736]
[1754616338803,0.03767575,174.1,174.08,3.15]
[1754616339211,0.03767575,174.1,174.09,3.15]
[1754616339398,0.03767575,174.1,174.09,118.13]
[1754616340307,0.03767575,174.1,174.09,123.872]
[1754616340606,3.24,174.16,174.1,3.15]
[1754616340806,3.24,174.22,174.14,7.98331136]
[1754616340999,3.24,174.22,174.16,4.83331136]
[1754616341199,3.24,174.22,174.16,7.98331136]
[1754616341408,3.24,174.22,174.14,119.79331136]
[1754616341613,3.24,174.22,174.14,114.96]
[1754616341903,3.24,174.22,174.16,0.04045804]
[1754616342103,4.83331136,174.22,174.16,0.04045804]
[1754616342307,3.24,174.21,174.16,0.04045804]
[1754616342610,8.9794,174.17,174.16,0.04045804]
[1754616343004,5.7404,174.15,174.1,114.94]
[1754616343310,3.24,174.17,174.15,0.03932384]
[1754616343705,3.24,174.15,174.1,114.94]
[1754616344008,3.24,174.15,174.14,0.04404394]
[1754616344207,8.9801,174.15,174.14,0.04404394]
[1754616345409,3.24,174.1,174.04,3.15]
[1754616345706,3.24,174.1,174.04,118.05]
[1754616345902,8.07331136,174.1,174.04,114.9]
[1754616346109,3.24,174.09,174.01,3.15]
[1754616346714,0.03885509,174.07,174.01,3.15]
[1754616347009,3.24,174.05,174.02,8.8943]
[1754616347206,3.27885509,174.07,174.03,3.15]
[1754616347412,0.03885509,174.07,174.03,7.98331136]
[1754616347611,0.03885509,174.07,174.04,5.7436]
[1754616347812,0.03885509,174.07,174.05,3.15]
[1754616348216,0.03885509,174.07,174.06,3.15]
[1754616349609,0.03885509,174.07,174.06,8.893]
[1754616350012,0.03885509,174.07,174.06,3.15]
[1754616350516,0.03885509,174.07,174.06,118.01]
[1754616350711,3.24,174.13,174.06,118.01]
[1754616350916,3.24,174.13,174.11,3.15]
[1754616351116,3.24,174.17,174.11,7.98331136]
[1754616351318,3.24,174.2,174.13,4.83331136]
[1754616351519,3.24,174.2,174.14,3.15]
[1754616351719,3.24,174.2,174.15,4.83331136]
[1754616352019,3.24,174.2,174.17,7.98331136]
[1754616352222,3.24,174.17,174.15,0.04272348]
[1754616352427,3.24,174.16,174.15,0.04272348]
[1754616352617,4.83331136,174.23,174.13,119.67331136]
[1754616352818,3.24,174.15,174.13,119.67331136]
[1754616353018,3.24,174.15,174.14,0.03800179]
[1754616353420,3.24,174.17,174.14,0.03800179]
[1754616353622,4.83331136,174.23,174.15,3.15]
[1754616353823,3.24,174.18,174.15,3.15]
[1754616354221,3.24,174.19,174.14,0.03800179]
[1754616354729,5.7388,174.19,174.14,0.03800179]
[1754616354931,3.24,174.16,174.14,0.03800179]
[1754616355427,3.24,174.18,174.14,3.18800179]
[1754616355624,4.83331136,174.23,174.14,0.03800179]
[1754616355825,3.24,174.22,174.14,0.03800179]
[1754616356427,4.83331136,174.21,174.14,0.03800179]
[1754616356634,3.24,174.2,174.14,0.03800179]
[1754616356931,4.83331136,174.21,174.14,0.03800179]
[1754616357124,3.24,174.16,174.14,0.03800179]
[1754616357527,8.9801,174.15,174.07,7.98331136]
[1754616357727,3.24,174.14,174.07,7.98331136]
[1754616357930,3.24,174.14,174.13,0.0367347]
[1754616358129,8.9804,174.14,174.13,0.0367347]
[1754616358333,3.24,174.13,174.06,114.74]
[1754616358526,8.9807,174.13,174.12,0.04077493]
[1754616358730,8.9807,174.13,174.12,7.493e-05]
[1754616358932,3.24,174.13,174.07,3.15]
[1754616359432,8.9808,174.13,174.08,5.7423]
[1754616359633,3.24,174.16,174.09,3.15]
[1754616359931,0.04315126,174.12,174.07,4.83331136]
[1754616360233,0.04315126,174.12,174.08,3.15]
[1754616360429,0.04315126,174.12,174.09,5.7419]
[1754616360624,3.28315126,174.12,174.07,7.98331136]
[1754616360819,3.24,174.11,174.08,3.15]
[1754616361021,0.04315126,174.12,174.08,3.15]
[1754616361328,0.04315126,174.12,174.07,4.83331136]
[1754616361632,3.36,174.11,174.07,4.83331136]
[1754616361821,0.04315126,174.12,174.07,4.83331136]
[1754616362028,3.40315126,174.12,174.09,3.08]
[1754616362321,0.04315126,174.12,174.06,114.66]
[1754616362522,0.04315126,174.12,174.04,114.66]
[1754616362726,3.36,174.11,174.04,114.66]
[1754616363127,5.7421,174.09,174.04,120.4034]
[1754616363332,3.36,174.08,174.05,3.08]
[1754616363632,3.36,174.1,174.07,3.08]
[1754616363823,0.04146819,174.08,174.04,117.74]
[1754616364027,0.04146819,174.08,174.06,3.08]
[1754616364229,0.04146819,174.08,174.07,3.08]
[1754616364426,3.36,174.06,174.04,117.74]
[1754616364626,3.36,174.06,174.04,114.66]
[1754616365130,0.04146819,174.08,174.04,114.66]
[1754616365327,0.04146819,174.08,174.06,3.08]
[1754616365529,0.04146819,174.08,174.07,3.08]
[1754616366232,3.40146819,174.08,174.05,4.83331136]
[1754616366431,3.36,174.07,174.04,114.66]
[1754616366836,3.36,174.07,174.05,3.08]
[1754616367033,9.1028,174.07,174.05,3.08]
[1754616367233,3.36,174.05,174.03,7.91331136]
[1754616367531,3.36,174.05,174.03,122.51331136]
[1754616367831,3.36,174.07,174.03,114.6]
[1754616368235,3.36,174.06,174.03,123.4238]
[1754616368431,0.04146819,174.08,174.03,114.6]
[1754616368636,3.36,174.04,174.03,114.6]
[1754616368931,0.04146819,174.08,173.99,4.83331136]
[1754616369136,3.36,174.02,174.0,3.08]
[1754616369436,3.36,174.07,173.99,114.58]
[1754616369634,0.03774447,174.03,173.99,114.58]
[1754616369936,3.36,174.02,173.99,114.58]
[1754616370533,3.36,174.0,173.99,114.58]
[1754616371138,3.36,174.01,173.99,114.58]
[1754616371733,3.36,174.01,173.99,117.66]
[1754616372037,5.7873699,174.02,173.99,114.58]
[1754616372239,3.36,174.0,173.99,114.58]
[1754616372438,3.36,174.01,173.99,114.58]
[1754616372638,0.0429699,174.02,174.0,3.08]
[1754616373032,3.4029699,174.02,173.99,114.58]
[1754616373236,0.0429699,174.02,173.99,117.66]
[1754616373533,3.36,174.01,173.99,117.66]
[1754616373739,0.0429699,174.02,174.01,3.08]
[1754616373928,0.0429699,174.02,174.01,13.65801136]
[1754616375634,3.36,174.01,173.99,119.41331136]
[1754616375836,3.36,174.01,173.99,114.58]
[1754616376636,9.105,174.0,173.99,114.58]
[1754616376839,3.36,174.0,173.99,114.58]
[1754616377039,3.36,173.99,173.96,117.58]
[1754616377238,3.36,174.01,173.96,114.5]
[1754616377636,0.0429699,174.02,173.96,114.5]
[1754616377840,3.36,174.0,173.96,114.5]
[1754616378043,3.4029699,174.02,173.98,3.08]
[1754616378340,3.36,174.0,173.98,3.08]
[1754616378542,3.36,174.0,173.97,10.57901136]
[1754616378742,0.0429699,174.02,173.96,114.5]
[1754616378946,3.36,173.97,173.96,114.5]
[1754616379741,0.04356471,173.98,173.97,3.08]
[1754616380139,3.36,174.03,173.97,3.08]
[1754616380639,0.04225136,173.99,173.97,3.08]
[1754616380834,0.04225136,173.99,173.98,3.08]
[1754616381043,5.7441,174.03,173.98,3.08]
[1754616381239,3.36,174.02,173.99,3.08]
[1754616381441,0.03855411,174.0,173.99,8.8253]
[1754616382241,0.03855411,174.0,173.99,13.65861136]
[1754616382942,3.36,173.99,173.97,114.42]
[1754616383139,0.03855411,174.0,173.97,114.42]
[1754616383441,3.36,173.99,173.95,114.42]
[1754616383647,3.36,173.98,173.95,114.42]
[1754616383831,3.36,173.97,173.95,114.42]
[1754616384744,3.36,173.97,173.95,123.2464]
[1754616384942,3.36,173.97,173.95,114.42]
[1754616385241,3.36,173.96,173.95,114.42]
[1754616385744,3.36,173.99,173.95,117.5]
[1754616385941,0.03855411,174.0,173.95,114.42]
[1754616386134,3.36,173.99,173.95,114.42]
[1754616386534,3.36,173.95,173.89,42.79487831]
[1754616386741,8.19331136,173.95,173.86,3.08]
[1754616386941,3.36,173.94,173.87,114.38]
[1754616387248,0.04266667,173.92,173.87,114.38]
[1754616387445,0.04266667,173.92,173.89,5.7484]
[1754616387751,3.36,173.9,173.87,117.46]
[1754616388038,0.04266667,173.92,173.88,3.08]
[1754616388245,0.04266667,173.92,173.89,4.83331136]
[1754616388540,0.04266667,173.92,173.91,13.66131136]
[1754616388745,0.04266667,173.92,173.91,128.00131136]
[1754616389046,3.36,173.96,173.93,8.8272]
[1754616389246,3.36,173.94,173.93,5.7472]
[1754616389642,3.36,173.99,173.94,3.08]
[1754616389941,3.36,174.01,173.97,3.08]
[1754616390141,3.36,174.02,174.0,5.7448]
[1754616390345,3.36,174.06,173.99,119.17331136]
[1754616390849,3.36,174.06,174.01,5.78334325]
[1754616391041,3.36,174.06,174.01,0.03884325]
[1754616391749,5.7434,174.05,174.01,0.03884325]
[1754616391949,24.68151618,174.12,174.01,0.03884325]
[1754616391950,4.83331136,174.06,174.01,0.03884325]
[1754616392149,3.33,174.05,174.01,0.03884325]
[1754616392349,3.33,174.05,173.99,114.34]
[1754616392644,3.33,174.05,174.01,0.04260311]
[1754616392847,3.33,174.07,174.01,0.04260311]
[1754616393246,4.83331136,174.08,173.97,7.99331136]
[1754616393551,3.33,174.02,174.0,3.16]
[1754616393849,3.33,174.05,174.01,0.04192145]
[1754616394250,3.33,174.05,173.95,122.31331136]
[1754616394549,5.7443,174.03,174.01,0.03911553]
[1754616394849,3.33,174.02,174.01,0.03911553]
[1754616395445,8.16331136,174.02,173.95,114.32]
[1754616395644,3.33,173.96,173.92,5.7476]
[1754616396246,5.7463,173.96,173.92,5.7476]
[1754616396447,4.83331136,173.98,173.89,119.09331136]
[1754616396650,3.33,173.93,173.9,3.16]
[1754616396947,3.33,173.95,173.91,5.7477]
[1754616397148,3.33,173.95,173.92,3.16]
[1754616397447,0.04368456,173.96,173.92,3.16]
[1754616397745,3.33,173.95,173.89,119.09331136]
[1754616397946,3.33,173.95,173.9,3.16]
[1754616398249,3.33,173.95,173.9,5.748]
[1754616398849,3.33,173.94,173.89,114.26]
[1754616399345,8.16331136,173.94,173.85,3.16]
[1754616399540,3.33,173.91,173.83,3.16]
[1754616399746,3.33,173.91,173.84,4.83331136]
[1754616399951,3.33,173.93,173.91,8.9079]
[1754616400152,3.33,173.95,173.91,8.9079]
[1754616400451,0.04252593,173.94,173.91,8.9079]
[1754616400650,0.04252593,173.94,173.92,5.7476]
[1754616400851,3.37252593,173.94,173.91,3.16]
[1754616401046,3.33,173.93,173.9,4.83331136]
[1754616401247,3.33,173.93,173.9,7.99331136]
[1754616401460,0.04252593,173.94,173.91,3.16]
[1754616401646,0.04252593,173.94,173.93,3.16]
[1754616401849,3.33,174.01,173.94,3.16]
[1754616402051,3.33,174.01,173.97,4.83331136]
[1754616402351,3.33,174.01,173.94,114.18]
[1754616402751,3.33,174.01,173.98,3.16]
[1754616403056,3.33,174.04,174.01,3.16]
[1754616403255,3.33,174.1,174.02,3.16]
[1754616403655,3.33,174.08,173.98,3.16]
[1754616403852,4.83331136,174.05,173.96,114.16]
[1754616404053,3.33,174.04,173.95,7.99331136]
[1754616404245,3.33,174.04,173.97,4.83331136]
[1754616404448,3.33,174.05,173.99,7.99331136]
[1754616404654,5.7445,174.02,173.97,4.83331136]
[1754616404856,3.33,174.01,173.98,3.16]
[1754616405252,3.37083057,174.01,173.99,3.16]
[1754616405458,3.37083057,174.01,173.97,7.99331136]
[1754616405653,0.04083057,174.01,173.97,4.83331136]
[1754616405857,0.04083057,174.01,174.0,3.16]
[1754616406946,0.04083057,174.01,173.99,10.57831136]
[1754616407153,0.04083057,174.01,174.0,3.16]
[1754616407660,0.04083057,174.01,174.0,8.905]
[1754616407957,0.04083057,174.01,173.99,4.83331136]
[1754616408156,3.37083057,174.01,173.99,4.83331136]
[1754616408458,3.37083057,174.01,173.99,7.99331136]
[1754616408855,3.33,174.0,173.97,7.99331136]
[1754616409657,0.04083057,174.01,173.99,3.16]
[1754616409957,3.37083057,174.01,173.98,4.83331136]
[1754616410159,0.04083057,174.01,173.99,3.16]
[1754616410358,0.04083057,174.01,173.99,5.7453]
[1754616410661,0.04083057,174.01,174.0,3.16]
[1754616410854,0.04083057,174.01,174.0,13.73831136]
[1754616411452,0.04083057,174.01,173.95,3.16]
[1754616411655,3.37083057,174.01,173.98,3.16]
[1754616411952,3.33,174.0,173.97,4.83331136]
[1754616412358,3.33,174.0,173.98,3.16]
[1754616412956,0.04083057,174.01,173.95,3.16]
[1754616413161,3.33,173.98,173.96,3.16]
[1754616413657,5.78563057,174.01,173.95,4.83331136]
[1754616413858,3.37083057,174.01,173.95,7.99331136]
[1754616414361,0.04083057,174.01,173.98,5.7456]
[1754616414561,3.33,174.0,173.95,7.99331136]
[1754616414763,3.33,174.0,173.92,3.16]
[1754616415061,3.33,173.98,173.94,5.7467]
[1754616415462,3.37099187,173.98,173.94,5.7467]
[1754616415663,0.04099187,173.98,173.94,5.7467]
[1754616415852,3.37099187,173.98,173.96,5.7463]
[1754616416057,3.37099187,173.98,173.95,3.16]
[1754616416257,3.33,173.96,173.93,3.16]
[1754616416465,3.33,173.94,173.91,3.16]
[1754616416962,3.33,173.93,173.92,5.7476]
[1754616417558,3.33,173.92,173.9,113.96]
[1754616417957,0.03891576,173.94,173.9,113.96]
[1754616418162,3.33,173.92,173.9,119.7082]
[1754616418352,3.33,173.92,173.9,113.96]
[1754616418760,0.03891576,173.94,173.92,5.7474]
[1754616418960,3.33,173.93,173.9,117.12]
[1754616419163,3.33,173.93,173.91,3.16]
[1754616419365,3.36891576,173.94,173.91,3.16]
[1754616419562,0.03891576,173.94,173.93,3.16]
[1754616419763,0.03891576,173.94,173.93,8.9073]
[1754616420164,0.03891576,173.94,173.93,13.74061136]
[1754616420566,0.00160533,173.94,173.93,13.74061136]
[1754616422564,3.03,173.99,173.97,5.7459]
[1754616422765,3.03,174.05,173.96,3.18]
[1754616422971,3.03,174.05,173.98,5.7455]
[1754616423167,3.03,174.05,173.97,4.83331136]
[1754616423568,3.03,174.03,173.96,5.7463]
[1754616423766,3.03,174.03,173.99,0.04250036]
[1754616424572,3.03,174.02,173.99,0.04250036]
[1754616425372,3.03,174.01,174.0,5.7449]
[1754616426266,4.83331136,174.08,173.99,0.04250036]
[1754616426572,3.03,174.1,174.05,4.83331136]
[1754616426767,4.83331136,174.17,174.07,4.83331136]
[1754616426972,3.03,174.16,174.09,4.83331136]
[1754616427276,3.03,174.2,174.13,4.83331136]
[1754616427466,3.03,174.2,174.16,3.18]
[1754616427671,3.03,174.19,174.16,3.18]
[1754616427871,391.03331136,174.25,174.15,4.83331136]
[1754616428074,3.03,174.22,174.16,0.03642925]
[1754616428374,3.03,174.18,174.07,121.79331136]
[1754616428575,3.03,174.16,174.07,121.79331136]
[1754616428869,3.03,174.14,174.07,121.79331136]
[1754616429071,3.03,174.14,174.07,113.78]
[1754616429375,3.03,174.12,174.07,113.78]
[1754616429579,3.03,174.12,174.04,3.18]
[1754616429763,5.7424,174.08,174.02,113.74]
[1754616429974,3.03,174.05,174.02,113.74]
[1754616430172,3.03,174.04,174.02,113.74]
[1754616430373,3.03,174.03,174.02,113.74]
[1754616430573,3.03,174.08,174.02,113.74]
[1754616430874,3.03,174.08,173.99,4.83331136]
[1754616431072,3.03,174.06,173.97,121.73331136]
[1754616431476,0.04144465,174.03,173.97,113.72]
[1754616431678,3.03,174.02,173.95,386.1]
[1754616431979,3.03,173.97,173.94,113.7]
[1754616432179,3.03,173.96,173.94,113.7]
[1754616432378,4.83331136,174.01,173.94,116.88]
[1754616432578,8.7752,174.0,173.94,122.6267]
[1754616432877,4.83331136,173.99,173.94,113.7]
[1754616433078,5.746,173.97,173.94,113.7]
[1754616433278,3.03,173.95,173.94,113.7]
[1754616433480,3.03,173.94,173.91,3.18]
[1754616433680,3.03,173.96,173.89,113.68]
[1754616434582,3.03,173.93,173.9,3.18]
[1754616434777,3.03,173.93,173.9,8.9282]
[1754616434978,0.03927588,173.94,173.9,8.01331136]
[1754616435180,3.03,173.96,173.9,8.01331136]
[1754616435482,3.03,173.96,173.9,13.76151136]
[1754616436080,3.03,173.96,173.89,113.68]
[1754616436282,3.03,173.96,173.89,116.86]
[1754616436683,3.03,173.98,173.91,3.18]
[1754616437084,3.03,173.97,173.91,3.18]
[1754616437785,3.03,174.0,173.91,3.18]
[1754616438390,3.03,174.0,173.92,4.83331136]
[1754616438679,3.03,174.0,173.93,3.18]
[1754616438981,3.03,173.98,173.96,5.746]
[1754616439287,4.83331136,174.01,173.92,4.83331136]
[1754616439486,3.03,174.0,173.92,4.83331136]
[1754616439685,3.03,174.0,173.93,3.18]
[1754616439880,3.03,174.01,173.94,4.83331136]
[1754616440487,3.03,173.97,173.9,8.01331136]
[1754616441284,3.03,174.0,173.92,4.83331136]
[1754616441691,4.83331136,174.0,173.91,8.9277]
[1754616441889,3.03,173.99,173.91,3.18]
[1754616442388,4.83331136,174.0,173.91,3.18]
[1754616442686,3.03,173.98,173.95,3.18]
[1754616442887,4.83331136,174.04,173.94,4.83331136]
[1754616443092,3.03,173.97,173.94,10.58021136]
[1754616443386,3.03,174.0,173.95,3.18]
[1754616443591,3.03,174.03,173.94,8.01331136]
[1754616443792,3.03,174.02,173.94,8.01331136]
[1754616444293,8.7746,174.02,173.96,5.746]
[1754616444495,3.03,174.01,173.94,4.83331136]
[1754616445004,3.03,173.99,173.95,5.7466]
[1754616445191,3.03,173.98,173.95,3.18]
[1754616445390,4.83331136,174.04,173.94,4.83331136]
[1754616445592,3.03,173.95,173.92,8.01331136]
[1754616445792,3.03,173.94,173.9,8.01331136]
[1754616446092,3.03,173.99,173.91,3.18]
[1754616446594,5.746,173.97,173.91,8.9279]
[1754616446796,3.03,173.93,173.89,113.68]
[1754616446990,4.83331136,174.0,173.9,4.83331136]
[1754616447292,3.03,173.99,173.92,3.18]
[1754616447492,3.03,174.01,173.92,8.01331136]
[1754616447694,3.03,174.01,173.94,8.01331136]
[1754616447890,3.03,173.98,173.94,13.76001136]
[1754616448097,3.03,173.96,173.94,10.58001136]
[1754616448288,3.03,173.99,173.96,3.18]
[1754616448494,3.03,173.99,173.96,4.83331136]
[1754616448694,223.35848019,174.05,173.97,3.18]
[1754616448893,3.03,173.99,173.97,8.9257]
[1754616449196,4.83331136,174.04,173.94,8.01331136]
[1754616449396,4.83331136,174.02,173.92,4.83331136]
[1754616449691,3.03,174.01,173.92,4.83331136]
[1754616449893,3.03,174.01,173.92,8.01331136]
[1754616450200,3.03,174.0,173.98,3.18]
[1754616450397,223.35848019,174.05,173.98,4.83331136]
[1754616450598,3.03,173.99,173.96,10.57951136]
[1754616450793,4.83331136,174.03,173.94,8.01331136]
[1754616450995,3.03,174.02,173.94,3.18]
[1754616451193,3.03,174.0,173.93,3.18]
[1754616451597,3.09,173.96,173.93,3.18]
[1754616451798,3.09,174.02,173.93,3.18]
[1754616452096,5.746,173.97,173.93,3.18]
[1754616452397,3.09,174.02,173.92,4.83331136]
[1754616452698,3.09,173.98,173.93,3.19]
[1754616452898,3.09,173.98,173.92,4.83331136]
[1754616453198,228.19179155,174.05,173.96,3.19]
[1754616453396,3.09,174.02,173.96,3.19]
[1754616453792,228.19179155,174.05,173.96,8.9361]
[1754616453997,3.09,174.04,173.96,8.9361]
[1754616454398,3.09,174.02,173.96,3.19]
[1754616454598,3.09,174.04,174.01,8.02331136]
[1754616454797,3.09,174.04,174.01,4.83331136]
[1754616454997,3.09,174.04,173.97,4.83331136]
[1754616455299,3.09,174.04,173.98,3.19]
[1754616455496,3.09,174.04,173.97,4.83331136]
[1754616456103,3.09,174.04,173.96,3.19]
[1754616456304,4.83331136,174.03,173.93,4.83331136]
[1754616456604,5.7454,173.99,173.94,8.9369]
[1754616456802,3.09,174.0,173.93,4.83331136]
[1754616456999,3.09,173.98,173.94,3.19]
[1754616457199,3.09,173.98,173.95,3.19]
[1754616457404,3.09,174.02,173.93,4.83331136]
[1754616457605,3.09,174.02,173.93,13.77051136]
[1754616458206,5.7456,173.99,173.93,13.77051136]
[1754616458503,3.09,173.97,173.93,4.83331136]
[1754616458705,3.09,173.97,173.94,3.19]
[1754616458907,3.09,174.0,173.92,3.19]
[1754616459296,3.09,174.0,173.94,3.19]
[1754616459708,3.09,174.0,173.94,8.9368]
[1754616460007,3.09,174.0,173.94,3.19]
[1754616460408,4.83331136,174.03,173.95,3.19]
[1754616460409,3.09,174.02,173.95,3.19]
[1754616460808,3.09,174.02,173.96,3.19]
[1754616461009,8.8346,174.02,173.97,5.746]
[1754616461208,3.09,174.01,173.98,3.19]
[1754616461405,3.09,174.04,174.0,3.19]
[1754616461710,3.09,174.06,173.97,3.19]
[1754616461916,3.09,174.04,173.95,4.83331136]
[1754616462205,4.83331136,174.05,173.96,3.19]
[1754616462508,3.09,174.04,173.98,3.19]
[1754616462712,3.09,174.04,174.01,3.19]
[1754616462902,3.09,174.08,174.02,3.19]
[1754616463109,8.8324,174.08,174.03,5.744]
[1754616463415,3.09,174.09,174.01,8.02331136]
[1754616463914,3.09,174.05,173.99,8.02331136]
[1754616464312,3.09,174.05,173.91,158.8159]
[1754616464313,3.09,174.09,174.03,4.83331136]
[1754616464512,3.09,174.07,173.98,3.19]
[1754616464713,3.09,174.05,173.98,3.19]
[1754616465412,5.744,174.03,173.98,3.19]
[1754616465724,3.09,174.03,173.95,3.19]
[1754616465921,3.09,174.01,173.92,3.19]
[1754616466517,3.09,174.01,173.95,5.7464]
[1754616466917,7.92331136,174.04,173.94,3.19]
[1754616467115,8.835,174.0,173.96,3.19]
[1754616467312,8.835,174.0,173.97,3.19]
[1754616467520,5.7446,174.02,173.97,8.9359]
[1754616467726,3.09,174.01,173.95,4.83331136]
[1754616467917,4.83331136,174.06,173.99,3.19]
[1754616468115,3.09,174.03,174.0,3.19]
[1754616468316,3.09,174.03,174.01,3.19]
[1754616468619,5.7437,174.04,173.98,3.19]
[1754616468821,3.09,174.07,174.0,3.19]
[1754616469523,3.09,174.07,173.97,3.19]
[1754616469825,5.744,174.03,173.98,5.7454]
[1754616470018,4.83331136,174.06,173.97,4.83331136]
[1754616470216,3.09,174.05,173.97,4.83331136]
[1754616470420,3.09,174.05,173.96,3.19]
[1754616470624,3.09,174.05,173.97,4.83331136]
[1754616470821,3.09,174.05,173.98,3.19]
[1754616471022,8.8343,174.02,173.99,3.19]
[1754616471222,3.09,174.01,173.99,3.19]